bitfinex-derivatives/quotes_ETHF0:USTF0_20250102
["timestamp","ask_amount","ask_price","bid_price","bid_amount"]
[1735799930067,0.7155,3410.7,3410.6,0.29371]
[1735799930467,0.7155,3410.7,3410.3,2.29365641]
[1735799930468,0.4218,3410.7,3410.3,2.29365641]
[1735799930664,0.29373,3410.4,3410.3,0.29373]
[1735799931570,0.4218,3410.7,3410.1,1.148]
[1735799931867,0.29373,3410.4,3410.3,0.29373]
[1735799932071,0.29372,3410.5,3410.4,0.29372]
[1735799933072,0.29373,3410.4,3410.3,0.29373]
[1735799933670,3.4058,3410.7,3410.1,1.148]
[1735799933970,3.4058,3410.7,3410.2,0.45838067]
[1735799934171,0.29372,3410.6,3410.5,0.29371]
[1735799935060,3.4058,3410.7,3410.1,1.148]
[1735799935267,3.69951,3410.7,3410.6,0.29371]
[1735799937663,3.4058,3410.7,3410.6,0.29371]
[1735799937968,0.4218,3410.7,3410.6,0.29371]
[1735799938964,0.8552,3410.7,3410.6,0.29371]
[1735799939469,1.1489,3410.7,3410.6,0.29371]
[1735799940672,6.60404561,3410.7,3410.6,0.75260155]
[1735799940968,7.06324561,3410.7,3410.6,0.75260155]
[1735799941466,6.20804561,3410.7,3410.6,3.04625796]
[1735799941660,5.74884561,3410.7,3410.6,3.04625796]
[1735799941856,8.95664561,3410.8,3410.6,2.75254796]
[1735799942067,8.95664561,3410.8,3410.7,0.85189976]
[1735799942366,8.95664561,3410.8,3410.7,0.75259155]
[1735799942571,8.95664561,3410.8,3410.7,0.85190605]
[1735799942967,3.2078,3410.8,3410.7,0.85190605]
[1735799944871,6.21114561,3410.9,3410.7,0.55820605]
[1735799945167,0.75599,3410.9,3410.8,0.75258155]
[1735799945971,0.4623,3410.9,3410.8,0.75258155]
[1735799946168,10.10641473,3411.2,3411.1,0.29367]
[1735799946368,10.10641473,3411.2,3411.1,0.75256155]
[1735799946969,6.89861473,3411.2,3411.1,2.35214278]
[1735799947176,6.89861473,3411.2,3411.1,2.78374278]
[1735799948074,4.60541727,3411.3,3411.1,2.49007278]
[1735799948371,4.60541727,3411.3,3411.2,0.29366]
[1735799948572,4.60541727,3411.3,3411.2,0.85179188]
[1735799950672,4.60541727,3411.4,3411.3,0.29365]
[1735799950876,4.60541727,3411.4,3411.3,2.58730641]
[1735799951069,4.60541727,3411.4,3411.3,3.04619796]
[1735799951876,4.60541727,3411.5,3411.3,2.75254796]
[1735799952178,4.60541727,3411.5,3411.4,1.19273155]
[1735799952773,4.60541727,3411.6,3411.5,0.29363]
[1735799952974,4.60541727,3411.6,3411.5,0.75252155]
[1735799953371,4.60541727,3411.6,3411.5,0.29363]
[1735799954467,3.2078,3411.7,3411.5,0.29363]
[1735799954672,5.75677158,3411.6,3411.5,0.29363]
[1735799954974,5.75677158,3411.6,3411.5,0.7512165]
[1735799956981,5.75677158,3411.7,3411.5,0.4575865]
[1735799957178,5.75677158,3411.7,3411.6,0.29362]
[1735799957987,1.18911,3411.8,3411.7,0.29362]
[1735799958288,0.8955,3411.8,3411.4,0.4402]
[1735799958586,1.18911,3411.8,3411.7,0.29125948]
[1735799960490,0.29361,3411.8,3411.7,0.29125948]
[1735799961386,6.04601903,3411.8,3411.7,0.29125948]
[1735799962590,0.29361,3411.8,3411.7,0.29125948]
[1735799964094,0.29362,3411.7,3411.6,0.29362]
[1735799964291,3.50142,3411.7,3411.6,0.29362]
[1735799965190,6.04496069,3411.8,3411.7,0.29362]
[1735799965986,0.29361,3411.8,3411.7,0.29362]
[1735799966889,6.04496069,3411.8,3411.7,0.29362]
[1735799968193,9.25276069,3411.8,3411.7,1.32692849]
[1735799968696,9.25276069,3411.8,3411.7,1.03330849]
[1735799969087,9.25276069,3411.8,3411.7,1.32692849]
[1735799971298,9.25276069,3411.8,3411.7,1.03330849]
[1735799972192,9.25276069,3411.8,3411.7,1.32692849]
[1735799972693,0.29365,3411.4,3411.3,0.29365]
[1735799972889,0.29365,3411.3,3411.2,0.29365]
[1735799973088,0.73025,3411.3,3411.2,0.75210849]
[1735799973293,0.73025,3411.3,3411.2,0.45845849]
[1735799973497,3.93805,3411.3,3411.2,0.56231417]
[1735799973699,3.93805,3411.3,3411.2,0.45845849]
[1735799973899,3.6444,3411.3,3410.8,2.18130849]
[1735799974095,0.29368,3410.9,3410.8,2.18130849]
[1735799974296,3.50148,3410.9,3410.8,1.25189999]
[1735799974497,3.50148,3410.9,3410.8,1.44169]
[1735799975290,3.50148,3410.9,3410.8,1.148]
[1735799975497,3.50148,3410.9,3410.8,1.44169]
[1735799975896,9.25165552,3410.9,3410.8,1.44169]
[1735799976995,9.25165552,3410.9,3410.8,1.148]
[1735799977299,3.50148,3410.9,3410.8,1.148]
[1735799977493,3.50148,3410.9,3409.7,0.84207878]
[1735799977494,3.2078,3410.9,3409.7,0.84207878]
[1735799977694,0.29375,3410.2,3409.9,0.4331]
[1735799977999,0.29374,3410.3,3410.0,0.1038148]
[1735799978200,0.29374,3410.3,3410.2,0.29374]
[1735799978400,4.89402752,3410.3,3410.2,0.29374]
[1735799978801,4.60028752,3410.3,3410.2,0.39750722]
[1735799979194,4.60028752,3410.3,3410.2,2.68850883]
[1735799979399,5.7503594,3410.3,3410.2,2.56083221]
[1735799979601,5.7503594,3410.3,3410.2,2.85457221]
[1735799979805,5.7503594,3410.3,3410.2,3.20377555]
[1735799980200,5.7503594,3410.3,3410.2,44.00377555]
[1735799980201,5.0498594,3410.3,3410.2,44.00377555]
[1735799980506,4.60060856,3410.7,3410.2,44.11129957]
[1735799980804,4.60060856,3410.7,3410.6,2.58471161]
[1735799981003,4.60060856,3410.7,3410.6,4.35172395]
[1735799981305,4.60060856,3410.7,3410.6,4.00171554]
[1735799981898,4.60060856,3411.0,3410.9,0.29368]
[1735799982103,4.60060856,3411.0,3410.9,0.39713753]
[1735799984503,4.60060856,3411.0,3410.9,0.29368]
[1735799984808,4.60060856,3411.0,3410.9,0.39715175]
[1735799985107,5.03910856,3411.1,3411.0,0.29368]
[1735799987002,0.4385,3411.1,3411.0,0.74815553]
[1735799987400,0.4385,3411.1,3411.0,0.29368]
[1735799988107,0.4385,3411.1,3411.0,0.85165297]
[1735799988497,0.4385,3411.1,3411.0,0.85164357]
[1735799989007,5.04287913,3411.1,3411.0,0.85164357]
[1735799989406,5.04287913,3411.1,3411.0,0.74816616]
[1735799989604,5.04287913,3411.1,3411.0,0.39717638]
[1735799990105,0.4385,3411.1,3411.0,0.8517094]
[1735799990314,0.4385,3411.1,3411.0,0.85169853]
[1735799990912,0.8774,3411.1,3411.0,0.85169853]
[1735799991208,0.8774,3411.1,3411.0,0.85170562]
[1735799992807,1.17107,3411.1,3411.0,0.85170562]
[1735799993110,0.8774,3411.1,3411.0,0.74821302]
[1735799993412,1.17107,3411.1,3411.0,0.74821302]
[1735799994107,1.17107,3411.1,3411.0,0.55709061]
[1735799994306,1.17107,3411.1,3411.0,0.45453302]
[1735799995606,1.17107,3411.1,3410.7,1.148]
[1735799995607,0.8774,3411.1,3410.7,1.148]
[1735799995911,3.50149,3410.9,3410.8,0.39629549]
[1735799996112,3.50149,3410.9,3410.8,0.85104151]
[1735799996614,3.50149,3410.9,3410.8,0.55735151]
[1735799996810,3.50149,3410.9,3410.8,0.85104151]
[1735799997113,3.50149,3410.9,3410.8,0.55735187]
[1735799997308,3.50149,3410.9,3410.8,0.74843602]
[1735799997707,3.50149,3410.9,3410.8,0.45474602]
[1735799997909,3.50149,3410.9,3410.8,0.74843602]
[1735799998209,3.50149,3410.9,3410.8,0.29369]
[1735799998606,3.2078,3410.9,3410.6,1.148]
[1735799998802,3.50149,3410.9,3410.8,0.29369]
[1735799999009,0.4534,3411.0,3410.8,0.10262984]
[1735799999317,0.4534,3411.0,3410.9,0.85118387]
[1735800000810,0.4534,3411.0,3410.9,0.74855403]
[1735800001416,0.4534,3411.0,3410.9,0.29368]
[1735800002116,3.6612,3411.0,3410.9,0.29368]
[1735800005423,6.19581763,3411.1,3411.0,0.29368]
[1735800005723,5.75731763,3411.1,3411.0,0.7488199]
[1735800005920,5.75731763,3411.1,3411.0,0.85143071]
[1735800006222,5.75731763,3411.1,3411.0,1.01564908]
[1735800006516,4.60643993,3411.2,3411.0,0.72196908]
[1735800006723,4.60643993,3411.2,3411.1,3.14242232]
[1735800007615,4.60643993,3411.2,3411.1,3.14238875]
[1735800007822,4.60643993,3411.5,3411.4,0.29364]
[1735800008022,4.60643993,3411.5,3411.4,1.44164]
[1735800008223,4.60643993,3411.5,3411.4,1.8967799]
[1735800009121,4.60643993,3411.5,3411.4,3.03978151]
[1735800012527,4.60643993,3411.5,3411.4,2.58464161]
[1735800013023,0.4439,3411.6,3411.5,0.29363]
[1735800013024,4.60643993,3411.6,3411.5,0.29363]
[1735800013426,4.60643993,3411.6,3411.5,0.74826394]
[1735800013626,4.60643993,3411.6,3411.5,1.18806394]
[1735800013826,4.60643993,3411.6,3411.5,0.73343]
[1735800014629,5.06623993,3411.8,3411.7,0.29362]
[1735800022222,5.06623993,3411.8,3411.7,2.58462161]
[1735800022528,0.4598,3411.8,3411.7,2.58462161]
[1735800022716,4.60643993,3411.9,3411.8,0.29361]
[1735800023629,8.70733993,3412.0,3411.7,2.29100161]
[1735800023833,8.70733993,3412.0,3411.9,0.2936]
[1735800026124,4.1009,3412.0,3411.9,0.2936]
[1735800027942,0.8931,3412.0,3411.9,0.2936]
[1735800028448,1.18669,3412.0,3411.9,0.2936]
[1735800028657,0.8931,3412.0,3411.9,0.2936]
[1735800028949,1.18669,3412.0,3411.9,0.2936]
[1735800029146,0.8931,3412.0,3411.7,2.29100161]
[1735800029344,0.2936,3411.9,3411.8,0.2936]
[1735800030251,6.94401763,3412.0,3411.9,0.2936]
[1735800031549,6.65041763,3412.0,3411.9,0.2936]
[1735800031943,0.2936,3411.9,3411.8,0.2936]
[1735800032147,6.65041763,3412.0,3411.7,2.29100161]
[1735800032349,6.94401763,3412.0,3411.9,0.2936]
[1735800032548,6.65041763,3412.0,3411.9,0.2936]
[1735800033649,6.94401763,3412.0,3411.8,0.29361]
[1735800033850,6.94401763,3412.0,3411.9,0.2936]
[1735800036151,6.94400763,3412.0,3411.9,0.2936]
[1735800036354,6.94400763,3412.0,3411.9,1.32667587]
[1735800037352,6.65041763,3412.0,3411.9,1.32667587]
[1735800037854,5.49864664,3412.0,3411.9,1.78225609]
[1735800038151,5.49864664,3412.0,3411.9,1.32667587]
[1735800039353,5.79223664,3412.0,3411.9,1.32667587]
[1735800040057,5.79223664,3412.0,3411.9,1.03307587]
[1735800040658,9.00003664,3412.0,3411.9,1.03307587]
[1735800041358,8.70644664,3412.0,3411.6,1.147]
[1735800041559,0.29362,3411.7,3411.6,1.147]
[1735800041961,0.29362,3411.7,3411.6,1.44063]
[1735800042258,0.29362,3411.7,3411.6,0.29363]
[1735800044162,5.75926707,3411.8,3411.4,3.43662838]
[1735800044356,0.29363,3411.6,3411.5,0.29363]
[1735800044552,0.29363,3411.5,3411.4,3.73026838]
[1735800044859,0.8758,3411.5,3411.4,3.73026838]
[1735800047860,1.3133,3411.5,3411.4,4.18578759]
[1735800048661,1.3133,3411.5,3411.4,3.73026838]
[1735800049162,7.07256707,3411.5,3411.4,3.73026838]
[1735800049363,7.07256707,3411.5,3411.4,4.18576193]
[1735800051460,1.3133,3411.5,3411.4,4.18576193]
[1735800060367,1.3133,3411.5,3411.4,3.73026838]
[1735800063665,0.4353,3411.5,3411.4,3.73026838]
[1735800064373,0.4353,3411.5,3411.4,2.47384546]
[1735800064774,0.8935,3411.5,3411.4,2.47384546]
[1735800068170,0.8935,3411.5,3411.4,0.45548987]
[1735800068377,0.8935,3411.5,3411.3,2.18020546]
[1735800068674,0.73834,3411.4,3411.3,2.18020546]
[1735800069874,0.29368,3411.0,3410.9,2.47388546]
[1735800070176,0.29369,3410.9,3410.8,1.32689546]
[1735800070378,1.18119,3410.9,3410.8,1.32689546]
[1735800070579,0.2937,3410.8,3410.6,0.29371]
[1735800070785,0.2937,3410.8,3410.7,0.2937]
[1735800071373,0.2937,3410.8,3410.6,1.03320546]
[1735800071579,0.2937,3410.8,3410.7,0.2937]
[1735800072079,1.18119,3410.9,3410.7,0.2937]
[1735800072281,1.18119,3410.9,3410.8,1.03320546]
[1735800072480,0.8875,3410.9,3410.8,1.32689546]
[1735800073771,0.4259,3410.9,3410.8,1.32689546]
[1735800074376,4.61330986,3410.9,3410.8,1.78199619]
[1735800075273,4.61330986,3410.9,3410.8,2.65829619]
[1735800075474,4.61330986,3411.0,3410.9,0.29369]
[1735800075680,4.61330986,3411.0,3410.9,1.32689546]
[1735800076482,4.61330986,3411.0,3410.9,0.29369]
[1735800077071,4.61330986,3411.0,3410.5,2.29029831]
[1735800077379,5.76663733,3411.0,3410.6,1.4407]
[1735800077680,5.76663733,3411.0,3410.6,1.147]
[1735800077681,0.2937,3410.7,3410.6,1.147]
[1735800077982,5.76663733,3411.0,3410.6,1.147]
[1735800077983,0.2937,3410.8,3410.6,1.147]
[1735800078182,0.2937,3410.8,3410.6,1.44071]
[1735800078183,0.4398,3410.7,3410.6,1.44071]
[1735800081176,6.20643733,3410.7,3410.6,1.44071]
[1735800082882,6.50013733,3410.7,3410.6,1.44071]
[1735800083286,6.20643733,3410.7,3410.6,1.44071]
[1735800083686,6.50013733,3410.7,3410.6,1.44071]
[1735800083982,6.20643733,3410.7,3410.4,1.147]
[1735800084179,0.73942,3410.6,3410.4,1.44072]
[1735800084378,0.29372,3410.5,3410.4,1.147]
[1735800085689,6.06035733,3410.5,3410.4,1.147]
[1735800086091,5.76663733,3410.5,3409.8,2.29029831]
[1735800086290,0.29375,3410.2,3410.0,0.29376]
[1735800086590,0.75075,3410.1,3409.9,1.4967165]
[1735800086789,0.4634,3410.0,3409.9,1.7904865]
[1735800087889,0.9036,3410.0,3409.9,1.7904865]
[1735800088484,0.9036,3410.0,3409.9,0.3497165]
[1735800088683,0.9036,3410.0,3409.8,1.44078]
[1735800089092,1.19737,3410.0,3409.8,1.44078]
[1735800089791,0.29377,3409.9,3409.8,1.44078]
[1735800089986,0.9036,3410.0,3409.6,3.2078]
[1735800090201,2.984,3409.9,3409.2,3.2078]
[1735800090496,0.2938,3409.7,3409.4,0.29381]
[1735800090993,0.4382,3409.6,3409.4,0.29381]
[1735800091291,0.455,3409.5,3409.4,0.29381]
[1735800092395,0.455,3409.5,3409.4,2.58410831]
[1735800092588,0.4382,3409.6,3409.5,0.29381]
[1735800093897,0.455,3409.8,3409.4,2.29029831]
[1735800094197,0.455,3409.8,3409.7,0.29379]
[1735800094893,0.74878,3409.8,3409.7,0.29379]
[1735800095097,0.455,3409.8,3409.7,0.29379]
[1735800097188,0.74878,3409.8,3409.7,0.29379]
[1735800098596,0.455,3409.8,3409.7,0.29379]
[1735800106191,0.455,3409.8,3409.7,1.3281841]
[1735800107091,0.29379,3409.7,3409.6,1.3281841]
[1735800107497,0.74879,3409.8,3409.6,1.0343941]
[1735800107696,0.74879,3409.8,3409.7,0.29379]
[1735800108099,0.455,3409.8,3409.6,1.0343941]
[1735800108297,0.29379,3409.7,3409.6,1.3281841]
[1735800108798,0.455,3409.8,3409.3,0.4535]
[1735800109108,0.29379,3409.7,3409.6,0.2938]
[1735800118301,5.06539033,3409.8,3409.7,0.29379]
[1735800119411,0.74878,3409.8,3409.7,0.29379]
[1735800120013,0.74878,3409.8,3409.7,0.75027702]
[1735800120206,0.74878,3409.8,3409.7,0.29379]
[1735800121108,5.35917033,3409.8,3409.7,0.29379]
[1735800122106,5.35917033,3409.8,3409.2,6.64729483]
[1735800122107,0.2938,3409.7,3409.6,0.29379]
[1735800122517,5.06539033,3409.8,3409.2,6.64729483]
[1735800122704,0.29382,3409.5,3409.4,0.29381]
[1735800123107,0.29382,3409.4,3409.3,0.29382]
[1735800123510,4.61039033,3409.7,3409.2,4.3548]
[1735800123709,1.3498,3409.3,3409.2,4.64863]
[1735800127019,1.3498,3409.3,3408.9,2.29249483]
[1735800127020,0.29385,3409.0,3408.9,0.29386]
[1735800127318,3.2078,3409.2,3408.9,0.29385]
[1735800127926,0.29384,3409.1,3409.0,0.29385]
[1735800128117,0.29384,3409.1,3408.7,1.147]
[1735800128323,0.29384,3409.1,3408.9,0.29385]
[1735800128324,4.61039033,3409.0,3408.9,0.29385]
[1735800128526,4.61039033,3409.0,3408.7,1.147]
[1735800128725,0.4399,3408.9,3408.8,0.29386]
[1735800128920,0.4399,3408.9,3408.7,1.147]
[1735800129121,0.4493,3408.8,3408.7,1.44087]
[1735800130331,0.9107,3408.8,3408.7,2.47591938]
[1735800130522,5.52109033,3408.8,3408.7,2.47591938]
[1735800131724,0.9107,3408.8,3408.7,2.47591938]
[1735800132123,0.9107,3408.8,3408.7,1.147]
[1735800132325,0.9107,3408.8,3408.4,0.2939]
[1735800132326,0.29389,3408.6,3408.4,0.2939]
[1735800132724,0.449,3408.5,3408.4,0.2939]
[1735800133832,0.449,3408.5,3408.3,2.18204938]
[1735800133833,4.61109607,3408.7,3408.6,0.29388]
[1735800134031,4.61109607,3408.7,3408.6,1.32892938]
[1735800134935,4.61109607,3408.7,3408.6,1.78232938]
[1735800136235,4.61109607,3409.0,3408.6,0.4534]
[1735800136531,4.61109607,3409.0,3408.9,0.29386]
[1735800138434,4.90494607,3409.0,3408.9,0.29386]
[1735800139235,4.90494607,3409.0,3408.6,0.4534]
[1735800139236,4.61109607,3409.0,3408.6,0.4534]
[1735800139535,0.72526,3408.9,3408.7,0.29387]
[1735800139928,0.4587,3408.8,3408.7,0.29387]
[1735800140130,0.4587,3408.8,3408.7,1.44087]
[1735800140131,0.75257,3408.8,3408.7,1.44087]
[1735800140939,0.4587,3408.8,3408.7,1.44087]
[1735800142235,0.75257,3408.8,3408.7,1.147]
[1735800142437,3.96037,3408.8,3408.7,1.147]
[1735800142735,8.27759607,3408.8,3408.4,1.4409]
[1735800142936,0.4342,3408.7,3408.4,1.4409]
[1735800143135,0.29389,3408.6,3408.4,1.4409]
[1735800143437,0.72808,3408.7,3408.5,0.29389]
[1735800143636,0.4342,3408.7,3408.2,2.2932759]
[1735800143934,0.72808,3408.7,3408.5,0.29389]
[1735800144128,0.29388,3408.6,3408.5,0.29389]
[1735800145238,4.90497607,3408.6,3408.5,0.29389]
[1735800145935,0.2939,3408.5,3408.3,1.4409]
[1735800146135,0.4608,3408.4,3408.3,1.4409]
[1735800146334,0.901,3408.4,3408.3,1.4409]
[1735800149234,0.901,3408.4,3408.3,0.2939]
[1735800149434,0.901,3408.4,3408.3,1.4409]
[1735800149736,5.04529607,3408.7,3408.6,0.29388]
[1735800151037,0.4342,3408.7,3408.6,0.29388]
[1735800151239,4.61109607,3408.8,3408.7,0.29388]
[1735800151641,4.61109607,3408.8,3408.7,0.75049364]
[1735800152142,4.61109607,3409.3,3409.2,0.29383]
[1735800152348,4.61109607,3409.3,3409.2,1.44083]
[1735800153138,8.11269607,3409.6,3409.2,1.147]
[1735800153345,7.81889607,3409.6,3409.4,0.29381]
[1735800154941,4.61109607,3409.6,3409.4,0.29381]
[1735800155142,4.90489607,3409.6,3409.4,0.29381]
[1735800156644,4.61109607,3409.6,3409.5,0.29381]
[1735800157750,4.90489607,3409.6,3409.5,0.29381]
[1735800157951,0.2938,3409.6,3409.5,0.29381]
[1735800160049,10.57322733,3409.7,3409.6,0.2938]
[1735800160246,4.80659,3409.7,3409.6,0.2938]
[1735800161653,4.5128,3409.7,3409.6,0.2938]
[1735800166553,10.27286728,3409.7,3409.6,0.2938]
[1735800166757,10.56665728,3409.7,3409.6,0.2938]
[1735800167758,0.29381,3409.6,3409.5,0.29381]
[1735800168260,1.32848876,3409.6,3409.5,0.29381]
[1735800168558,1.03467876,3409.6,3409.4,1.147]
[1735800168759,0.29382,3409.4,3409.3,0.29381]
[1735800168952,1.03467876,3409.4,3409.1,1.147]
[1735800169159,1.03467876,3409.4,3408.9,3.2078]
[1735800169362,0.29383,3409.3,3409.2,0.29383]
[1735800169664,1.03467876,3409.4,3408.9,4.3548]
[1735800169959,4.60927172,3409.3,3409.0,1.147]
[1735800170161,0.8433,3409.2,3409.1,0.29384]
[1735800170358,1.3038,3409.2,3409.1,0.29384]
[1735800172164,5.91307172,3409.2,3409.1,0.29384]
[1735800180764,1.3038,3409.2,3409.1,0.29384]
[1735800183168,5.91415816,3409.2,3409.1,0.29384]
[1735800187372,4.61035816,3409.2,3409.1,0.29384]
[1735800187568,4.61035816,3409.2,3409.1,0.73914]
[1735800187770,8.96786728,3409.3,3409.2,0.29383]
[1735800187968,8.96786728,3409.3,3409.2,1.76580876]
[1735800188770,5.76006728,3409.3,3409.2,1.76580876]
[1735800189174,4.6115352,3409.3,3409.2,1.47197876]
[1735800189374,4.6115352,3409.3,3409.2,1.76580876]
[1735800190865,4.6115352,3409.3,3409.2,2.22320292]
[1735800191778,4.6115352,3409.3,3409.2,1.76580876]
[1735800192980,5.76006728,3409.4,3409.3,0.29382]
[1735800197285,1.3543,3409.6,3409.5,0.29381]
[1735800201983,2.68277876,3409.6,3409.5,0.29381]
[1735800202784,0.29381,3409.5,3409.4,1.44081]
[1735800202986,0.29381,3409.5,3409.4,0.29381]
[1735800203382,0.29382,3409.4,3409.3,0.29382]
[1735800203676,3.50162,3409.4,3409.3,0.29382]
[1735800205577,3.50162,3409.4,3409.1,1.147]
[1735800205578,3.2078,3409.4,3409.1,1.147]
[1735800205778,0.29383,3409.3,3409.2,0.29383]
[1735800206187,3.50162,3409.4,3409.2,0.29383]
[1735800206384,0.29382,3409.3,3409.1,0.29384]
[1735800206679,1.03467876,3409.2,3408.9,1.147]
[1735800206883,0.8853,3409.1,3409.0,0.29385]
[1735800207084,1.3218,3409.1,3409.0,0.29385]
[1735800207275,1.61564,3409.1,3408.9,1.44085]
[1735800207478,1.61564,3409.1,3409.0,0.29385]
[1735800207679,1.3218,3409.1,3409.0,0.29385]
[1735800218994,7.08732226,3409.1,3409.0,0.29385]
[1735800220093,5.76552226,3409.1,3409.0,1.17845]
[1735800220291,5.76552226,3409.1,3409.0,1.63659856]
[1735800220889,5.76552226,3409.1,3409.0,1.17845]
[1735800221293,4.61223957,3409.1,3409.0,1.17845]
[1735800222401,6.21382226,3409.2,3409.1,0.29384]
[1735800222601,6.21382226,3409.2,3409.1,1.32851876]
[1735800223010,6.21382226,3409.2,3409.1,0.29384]
[1735800223204,6.21382226,3409.2,3409.1,1.32851876]
[1735800224203,0.4483,3409.2,3409.1,1.32851876]
[1735800227603,0.74213,3409.2,3409.1,0.29384]
[1735800228202,0.4483,3409.2,3409.1,0.29384]
[1735800229003,0.4483,3409.2,3409.1,1.32851876]
[1735800238315,3.2078,3409.4,3409.1,1.03467876]
[1735800238510,10.13349353,3409.4,3409.3,1.32849876]
[1735800238708,10.13349353,3409.4,3409.3,1.7878208]
[1735800239622,3.2078,3409.4,3409.3,1.7878208]
[1735800240811,8.97387468,3409.4,3409.3,1.7878208]
[1735800242909,1.3673,3409.7,3409.6,0.2938]
[1735800244914,1.66109,3409.7,3409.6,0.2938]
[1735800245508,1.3673,3409.7,3409.6,0.2938]
[1735800246713,8.58678353,3409.7,3409.6,0.2938]
[1735800246922,8.29299353,3409.7,3409.6,0.2938]
[1735800248118,1.3673,3409.7,3409.6,0.2938]
[1735800249025,1.66109,3409.7,3409.6,0.2938]
[1735800251228,4.86889,3409.7,3409.6,0.2938]
[1735800252026,11.48806212,3409.7,3409.6,0.2938]
[1735800252323,11.48806212,3409.7,3409.6,1.32847876]
[1735800253222,4.5751,3409.7,3409.6,1.32847876]
[1735800253523,3.2078,3409.7,3409.6,1.32847876]
[1735800253728,6.91296212,3409.8,3409.7,0.29379]
[1735800253930,6.91296212,3409.8,3409.7,0.72729]
[1735800254430,5.76124704,3409.9,3409.8,0.29378]
[1735800254728,5.76124704,3409.9,3409.8,2.47445876]
[1735800254924,5.76124704,3409.9,3409.8,2.93369722]
[1735800255326,5.76124704,3410.0,3409.8,2.63991722]
[1735800255631,5.76124704,3410.0,3409.9,1.32844876]
[1735800258719,9.39024704,3410.1,3409.9,1.03467876]
[1735800258925,9.39024704,3410.1,3410.0,0.29376]
[1735800259529,9.68399704,3410.1,3410.0,0.29376]
[1735800260930,3.629,3410.1,3410.0,0.29376]
[1735800264037,3.92275,3410.1,3410.0,0.29376]
[1735800264338,3.629,3410.1,3410.0,0.29376]
[1735800266139,9.38115973,3410.1,3410.0,0.29376]
[1735800267441,3.629,3410.1,3410.0,0.29376]
[1735800269940,8.22930586,3410.1,3410.0,0.29376]
[1735800270848,8.22930586,3410.1,3410.0,1.32843876]
[1735800271945,7.80810586,3410.1,3410.0,1.32843876]
[1735800272445,3.2078,3410.1,3410.0,1.32843876]
[1735800272835,3.2078,3410.1,3410.0,2.2184249]
[1735800273851,3.2078,3410.1,3410.0,1.75923876]
[1735800274045,4.60030586,3410.4,3410.0,2.21843399]
[1735800274245,4.60030586,3410.4,3410.3,1.32841876]
[1735800274847,4.60030586,3410.4,3410.3,1.78761399]
[1735800275050,4.60030586,3410.4,3410.3,1.32841876]
[1735800275246,0.432,3410.5,3410.3,1.03467876]
[1735800275547,0.432,3410.5,3410.4,0.29373]
[1735800280250,7.42466778,3410.6,3410.5,0.29372]
[1735800280446,0.4248,3410.6,3410.5,1.32839876]
[1735800280752,5.19100064,3410.7,3410.6,0.29371]
[1735800280952,5.19100064,3410.7,3410.6,0.71581]
[1735800281151,5.19100064,3410.7,3410.6,1.17490416]
[1735800281949,0.59069478,3410.7,3410.6,4.38270416]
[1735800283842,0.59069478,3410.7,3410.6,5.41738292]
[1735800284352,1.3002,3411.1,3411.0,0.29368]
[1735800284553,1.3002,3411.1,3411.0,3.50903752]
[1735800285049,1.3002,3411.1,3411.0,3.96809908]
[1735800285647,1.3002,3411.1,3411.0,3.50903752]
[1735800293963,1.3002,3411.1,3411.0,2.47435876]
[1735800297364,1.3002,3411.1,3411.0,1.43968]
[1735800297663,1.3002,3411.1,3411.0,3.50903752]
[1735800297863,1.3002,3411.1,3411.0,2.47435876]
[1735800298459,1.3002,3411.1,3411.0,3.50903752]
[1735800298962,1.3002,3411.1,3411.0,2.47435876]
[1735800299363,1.3002,3411.1,3411.0,3.50903752]
[1735800300065,1.3002,3411.1,3411.0,2.47435876]
[1735800300270,1.3002,3411.1,3411.0,3.50903752]
[1735800300465,3.2078,3411.3,3411.2,0.29366]
[1735800300671,3.2078,3411.3,3411.2,1.32833876]
[1735800300962,3.2078,3411.3,3411.2,1.78740179]
[1735800301965,0.4311,3411.5,3411.4,0.29364]
[1735800302171,0.4311,3411.5,3411.4,1.32831876]
[1735800302674,0.4311,3411.5,3411.4,1.78737334]
[1735800302969,0.4311,3411.5,3411.4,1.49373334]
[1735800303269,0.72473,3411.5,3411.4,1.03467876]
[1735800303859,5.32503586,3411.5,3411.4,1.03467876]
[1735800304263,5.03140586,3411.5,3410.6,3.6419]
[1735800304562,0.29368,3411.0,3410.9,0.29368]
[1735800304768,0.29368,3411.0,3410.7,1.60412213]
[1735800304968,0.29368,3411.0,3410.9,0.45912213]
[1735800305168,0.29368,3411.0,3410.8,0.29369]
[1735800305368,0.29367,3411.1,3410.8,0.29369]
[1735800305568,3.2078,3411.2,3411.0,1.03467876]
[1735800305764,3.50146,3411.2,3411.0,1.03467876]
[1735800305960,9.25361973,3411.2,3411.0,1.03467876]
[1735800306170,0.29367,3411.1,3411.0,1.03467876]
[1735800306671,0.29367,3411.1,3411.0,1.49380734]
[1735800306864,0.29367,3411.1,3411.0,1.03467876]
[1735800307070,4.88796399,3411.1,3411.0,1.03467876]
[1735800307473,5.31266399,3411.1,3411.0,1.32835876]
[1735800307972,5.01899399,3411.1,3411.0,1.32835876]
[1735800308370,5.01899399,3411.1,3411.0,1.78748257]
[1735800309174,0.4247,3411.1,3411.0,1.78748257]
[1735800311374,5.01899399,3411.1,3411.0,1.78748257]
[1735800311672,5.31266399,3411.1,3411.0,1.78748257]
[1735800311867,5.01899399,3411.1,3411.0,1.78748257]
[1735800312066,0.71837,3411.1,3411.0,1.78748257]
[1735800312275,0.4247,3411.1,3411.0,1.78748257]
[1735800313574,0.4247,3411.1,3411.0,1.49380257]
[1735800313771,0.71837,3411.1,3411.0,1.49380257]
[1735800314069,0.71837,3411.1,3411.0,1.78748257]
[1735800314579,0.71837,3411.1,3411.0,0.45912381]
[1735800314969,0.29368,3411.0,3410.8,1.32836876]
[1735800315673,0.29368,3411.0,3410.8,1.03467876]
[1735800315973,0.71837,3411.1,3411.0,0.29368]
[1735800316278,0.71837,3411.1,3411.0,1.32835876]
[1735800318174,3.70237,3411.1,3411.0,1.32835876]
[1735800318478,3.4087,3411.1,3411.0,1.32835876]